fUSD/lending_fUSD_20260611
["ID","MTS","AMOUNT","RATE_DAILY","PERIOD"]
[424831001,1781191878000,-151.0,0.0002498,2]
[424831000,1781191878000,-200.0,0.0002498,2]
[424830999,1781191878000,-775.4783256,0.00024978,2]
[424830992,1781191878000,-166.98,0.00024867,5]
[424830998,1781191878000,-151.0,0.00024978,2]
[424830994,1781191878000,-152.0,0.00024971,4]
[424830997,1781191878000,-621.78829552,0.00024978,2]
[424830996,1781191878000,-302.16460183,0.00024976,2]
[424830995,1781191878000,-250.0,0.00024972,7]
[424830993,1781191878000,-671.0,0.00024889,8]
[424831051,1781191879000,-270.0455652,0.00026076,2]
[424831061,1781191879000,-1041.0,0.000261,2]
[424831056,1781191879000,-1191.85203056,0.000261,2]
[424831058,1781191879000,-297.0,0.000261,2]
[424831064,1781191879000,-166.98,0.00026116,5]
[424831060,1781191879000,-738.0,0.000261,2]
[424831068,1781191879000,-151.0,0.00026199,2]
[424831057,1781191879000,-1824.0,0.000261,2]
[424831052,1781191879000,-191.19507533,0.00026076,2]
[424831063,1781191879000,-743.0,0.000261,2]
[424831065,1781191879000,-227.7,0.00026116,7]
[424831059,1781191879000,-171.0,0.000261,2]
[424831066,1781191879000,-671.0,0.00026141,9]
[424831067,1781191879000,-151.0,0.00026195,2]
[424831070,1781191879000,-1203.85266,0.00026384,2]
[424831078,1781191879000,-1203.85266,0.00026384,2]
[424831079,1781191879000,-1203.85266,0.00026384,2]
[424831072,1781191879000,-1203.85266,0.00026384,2]
[424831053,1781191879000,-575.45,0.00026087,2]
[424831062,1781191879000,-159.0,0.000261,2]
[424831054,1781191879000,-1034.0,0.000261,2]
[424831037,1781191879000,-207.3,0.00025754,2]
[424831050,1781191879000,-200.0,0.00026076,2]
[424831071,1781191879000,-1203.85266,0.00026384,2]
[424831031,1781191879000,-671.0,0.00025515,9]
[424831034,1781191879000,-191.19507533,0.00025528,2]
[424831032,1781191879000,-200.0,0.00025528,2]
[424831033,1781191879000,-260.4103811,0.00025528,2]
[424831042,1781191879000,-319.48224745,0.00025972,7]
[424831035,1781191879000,-762.9,0.00025644,2]
[424831043,1781191879000,-611.50472551,0.0002599,2]
[424831039,1781191879000,-1494.95,0.000258,7]
[424831038,1781191879000,-100000.0,0.00025786,7]
[424831040,1781191879000,-2500.0,0.000259,7]
[424831036,1781191879000,-197.48,0.00025644,2]
[424831041,1781191879000,-152.0,0.00025921,2]
[424831045,1781191879000,-220.24774789,0.00026,2]
[424831055,1781191879000,-11899.0,0.000261,2]
[424831044,1781191879000,-4602.70594616,0.00026,2]
[424831046,1781191879000,-5173.03460158,0.00026,30]
[424831047,1781191879000,-550.0,0.00026,2]
[424831048,1781191879000,-155.18434343,0.00026025,2]
[424831049,1781191879000,-150.0,0.00026028,2]
[424831080,1781191879000,-1203.85266,0.00026384,2]
[424831097,1781191879000,-1227.0,0.00026611,2]
[424831073,1781191879000,-1203.85266,0.00026384,2]
[424831098,1781191879000,-1214.0,0.00026611,2]
[424831101,1781191879000,-151.0,0.00026611,2]
[424831102,1781191879000,-151.0,0.00026611,2]
[424831104,1781191879000,-200.0,0.00026624,2]
[424831103,1781191879000,-151.0,0.00026611,2]
[424831106,1781191879000,-191.19507533,0.00026624,2]
[424831108,1781191879000,-5831.68,0.00026692,7]
[424831105,1781191879000,-280.03725111,0.00026624,2]
[424831107,1781191879000,-150.0,0.00026641,2]
[424831110,1781191879000,-512.558486,0.00026841,120]
[424831109,1781191879000,-671.0,0.00026768,10]
[424831111,1781191879000,-482.22,0.00026865,2]
[424831113,1781191879000,-575.42,0.00026908,2]
[424831115,1781191879000,-320.78,0.00026909,2]
[424831112,1781191879000,-642.67,0.00026865,2]
[424831117,1781191879000,-482.22,0.00026998,2]
[424831116,1781191879000,-15012.1266,0.0002693,3]
[424831118,1781191879000,-644.05,0.00026998,2]
[424831120,1781191879000,-1054.01722103,0.00027,2]
[424831119,1781191879000,-250.0,0.00027,2]
[424831099,1781191879000,-3643.0,0.00026611,2]
[424831114,1781191879000,-482.24,0.00026908,2]
[424831096,1781191879000,-382.0,0.00026611,2]
[424831100,1781191879000,-1358.0,0.00026611,2]
[424831075,1781191879000,-1203.85266,0.00026384,2]
[424831076,1781191879000,-1203.85266,0.00026384,2]
[424831074,1781191879000,-1203.85266,0.00026384,2]
[424831077,1781191879000,-1203.85266,0.00026384,2]
[424831082,1781191879000,-1203.85266,0.00026384,2]
[424831081,1781191879000,-1203.85266,0.00026384,2]
[424831084,1781191879000,-1203.85266,0.00026384,2]
[424831083,1781191879000,-1203.85266,0.00026384,2]
[424831086,1781191879000,-1203.85266,0.00026384,2]
[424831069,1781191879000,-2239.2,0.00026296,2]
[424831089,1781191879000,-1203.852656,0.00026384,2]
[424831088,1781191879000,-1203.85266,0.00026384,2]
[424831085,1781191879000,-1203.85266,0.00026384,2]
[424831091,1781191879000,-232.51049563,0.00026397,2]
[424831090,1781191879000,-1207.84673059,0.00026397,2]
[424831093,1781191879000,-151.0,0.000265,2]
[424831092,1781191879000,-27980.84559622,0.000264,2]
[424831094,1781191879000,-150.0,0.00026611,2]
[424831087,1781191879000,-1203.85266,0.00026384,2]
[424831095,1781191879000,-1274.0,0.00026611,2]
[424831138,1781191880000,-155.18434344,0.00027394,2]
[424831141,1781191880000,-155.00699709,0.00027397,7]
[424831142,1781191880000,-669.93516508,0.00027397,2]
[424831143,1781191880000,-616.31,0.00027397,2]
[424831147,1781191880000,-500.0,0.00027397,2]
[424831148,1781191880000,-500.0,0.00027397,2]
[424831151,1781191880000,-500.0,0.00027397,2]
[424831146,1781191880000,-500.0,0.00027397,2]
[424831144,1781191880000,-578.25824871,0.00027397,2]
[424831140,1781191880000,-201.30778844,0.00027397,7]
[424831150,1781191880000,-500.0,0.00027397,2]
[424831153,1781191880000,-500.0,0.00027397,2]
[424831149,1781191880000,-500.0,0.00027397,2]
[424831152,1781191880000,-500.0,0.00027397,2]
[424831145,1781191880000,-500.0,0.00027397,2]
[424831137,1781191880000,-671.0,0.00027394,10]
[424831130,1781191880000,-720.1,0.0002734,2]
[424831135,1781191880000,-4188.92557719,0.0002739,2]
[424831154,1781191880000,-500.0,0.00027397,2]
[424831121,1781191880000,-530.0,0.00027,2]
[424831122,1781191880000,-150.0,0.00027,2]
[424831127,1781191880000,-290.3986294,0.00027172,2]
[424831123,1781191880000,-215.95576085,0.00027,3]
[424831125,1781191880000,-8421.78,0.00027046,120]
[424831139,1781191880000,-805.23115372,0.00027397,7]
[424831124,1781191880000,-151.0,0.00027021,2]
[424831128,1781191880000,-191.19507533,0.00027172,2]
[424831134,1781191880000,-720.1,0.00027381,7]
[424831131,1781191880000,-166.98,0.00027359,5]
[424831133,1781191880000,-720.24,0.00027379,7]
[424831132,1781191880000,-227.7,0.00027359,7]
[424831136,1781191880000,-8275.81131763,0.0002739,2]
[424831129,1781191880000,-720.24,0.00027338,2]
[424831126,1781191880000,-200.0,0.00027172,2]
[424831155,1781191880000,-500.0,0.00027397,2]
[424831162,1781191880000,-150.0,0.00027397,2]
[424831178,1781191880000,-440.406549,0.00027397,2]
[424831180,1781191880000,-440.406549,0.00027397,2]
[424831181,1781191880000,-440.406549,0.00027397,2]
[424831183,1781191880000,-440.406549,0.00027397,2]
[424831177,1781191880000,-440.406549,0.00027397,2]
[424831182,1781191880000,-440.406549,0.00027397,2]
[424831173,1781191880000,-440.406549,0.00027397,2]
[424831179,1781191880000,-440.406549,0.00027397,2]
[424831188,1781191880000,-3087.87,0.00027397,2]
[424831187,1781191880000,-440.406555,0.00027397,2]
[424831189,1781191880000,-300.0,0.00027397,2]
[424831186,1781191880000,-440.406549,0.00027397,2]
[424831190,1781191880000,-840.326565,0.00027397,2]
[424831156,1781191880000,-320.15154286,0.00027397,2]
[424831185,1781191880000,-440.406549,0.00027397,2]
[424831174,1781191880000,-440.406549,0.00027397,2]
[424831184,1781191880000,-440.406549,0.00027397,2]
[424831176,1781191880000,-440.406549,0.00027397,2]
[424831160,1781191880000,-150.0,0.00027397,2]
[424831172,1781191880000,-440.406549,0.00027397,2]
[424831157,1781191880000,-150.0,0.00027397,2]
[424831158,1781191880000,-150.0,0.00027397,2]
[424831159,1781191880000,-150.0,0.00027397,2]
[424831163,1781191880000,-150.0,0.00027397,2]
[424831164,1781191880000,-150.0,0.00027397,2]
[424831161,1781191880000,-150.0,0.00027397,2]
[424831168,1781191880000,-440.406549,0.00027397,2]
[424831167,1781191880000,-1500.0,0.00027397,2]
[424831169,1781191880000,-440.406549,0.00027397,2]
[424831166,1781191880000,-2585.09455613,0.00027397,2]
[424831170,1781191880000,-440.406549,0.00027397,2]
[424831165,1781191880000,-150.0,0.00027397,2]
[424831175,1781191880000,-440.406549,0.00027397,2]
[424831171,1781191880000,-440.406549,0.00027397,2]
[424831214,1781191881000,-151.0,0.00027397,2]
[424831218,1781191881000,-234.253972,0.00027397,2]
[424831221,1781191881000,-511.44463,0.00027397,2]
[424831216,1781191881000,-151.0,0.00027397,2]
[424831217,1781191881000,-151.0,0.00027397,2]
[424831212,1781191881000,-151.0,0.00027397,2]
[424831220,1781191881000,-511.44463,0.00027397,2]
[424831219,1781191881000,-529.16,0.00027397,2]
[424831225,1781191881000,-511.44463,0.00027397,2]
[424831234,1781191881000,-511.44463,0.00027397,2]
[424831222,1781191881000,-511.44463,0.00027397,2]
[424831224,1781191881000,-511.44463,0.00027397,2]
[424831226,1781191881000,-511.44463,0.00027397,2]
[424831228,1781191881000,-511.44463,0.00027397,2]
[424831229,1781191881000,-511.44463,0.00027397,2]
[424831231,1781191881000,-511.44463,0.00027397,2]
[424831227,1781191881000,-511.44463,0.00027397,2]
[424831230,1781191881000,-511.44463,0.00027397,2]
[424831213,1781191881000,-151.0,0.00027397,2]
[424831223,1781191881000,-511.44463,0.00027397,2]
[424831211,1781191881000,-151.0,0.00027397,2]
[424831195,1781191881000,-840.326565,0.00027397,2]
[424831210,1781191881000,-151.0,0.00027397,2]
[424831233,1781191881000,-511.44463,0.00027397,2]
[424831191,1781191881000,-840.326565,0.00027397,2]
[424831192,1781191881000,-840.326565,0.00027397,2]
[424831194,1781191881000,-840.326565,0.00027397,2]
[424831193,1781191881000,-840.326565,0.00027397,2]
[424831197,1781191881000,-840.326565,0.00027397,2]
[424831199,1781191881000,-840.326565,0.00027397,2]
[424831200,1781191881000,-840.326565,0.00027397,2]
[424831196,1781191881000,-840.326565,0.00027397,2]
[424831198,1781191881000,-840.326565,0.00027397,2]
[424831201,1781191881000,-840.326565,0.00027397,2]
[424831203,1781191881000,-840.326565,0.00027397,2]
[424831207,1781191881000,-840.326565,0.00027397,2]
[424831206,1781191881000,-840.326565,0.00027397,2]
[424831204,1781191881000,-840.326565,0.00027397,2]
[424831205,1781191881000,-840.326565,0.00027397,2]
[424831202,1781191881000,-840.326565,0.00027397,2]
[424831215,1781191881000,-151.0,0.00027397,2]
[424831208,1781191881000,-840.326565,0.00027397,2]
[424831209,1781191881000,-840.326561,0.00027397,2]
[424831232,1781191881000,-511.44463,0.00027397,2]
[424831249,1781191881000,-295.73029983,0.00027427,7]
[424831240,1781191881000,-688.55,0.00027397,2]
[424831263,1781191881000,-169.82542138,0.00027428,7]
[424831264,1781191881000,-194.25456705,0.00027428,7]
[424831262,1781191881000,-217.99306079,0.00027428,7]
[424831269,1781191881000,-158.38624401,0.00027428,7]
[424831265,1781191881000,-163.58377588,0.00027428,7]
[424831272,1781191881000,-152.12505857,0.00027428,7]
[424831267,1781191881000,-152.61964976,0.00027428,7]
[424831266,1781191881000,-205.40773364,0.00027428,7]
[424831268,1781191881000,-170.09941481,0.00027428,7]
[424831261,1781191881000,-160.06012749,0.00027428,7]
[424831270,1781191881000,-171.13078668,0.00027428,7]
[424831274,1781191881000,-169.75874664,0.00027428,7]
[424831273,1781191881000,-181.77250968,0.00027428,7]
[424831276,1781191881000,-166.12096273,0.00027428,7]
[424831275,1781191881000,-159.2216773,0.00027428,7]
[424831277,1781191881000,-167.17644493,0.0002743,7]
[424831278,1781191881000,-720.24,0.00027463,2]
[424831279,1781191881000,-720.1,0.00027464,2]
[424831235,1781191881000,-511.44463,0.00027397,2]
[424831260,1781191881000,-159.30725686,0.00027428,7]
[424831254,1781191881000,-179.44031012,0.00027427,7]
[424831271,1781191881000,-195.71819516,0.00027428,7]
[424831257,1781191881000,-225.44963739,0.00027427,7]
[424831258,1781191881000,-158.69181314,0.00027427,7]
[424831236,1781191881000,-511.44463,0.00027397,2]
[424831237,1781191881000,-511.44463,0.00027397,2]
[424831238,1781191881000,-511.44463,0.00027397,2]
[424831239,1781191881000,-511.44464,0.00027397,2]
[424831245,1781191881000,-150.0,0.00027397,2]
[424831246,1781191881000,-720.24,0.00027421,30]
[424831244,1781191881000,-155.00699709,0.00027397,7]
[424831243,1781191881000,-9638.0,0.00027397,10]
[424831241,1781191881000,-13878.73,0.00027397,10]
[424831247,1781191881000,-720.1,0.00027423,30]
[424831248,1781191881000,-248.79264251,0.00027427,7]
[424831280,1781191881000,-643.18,0.00027467,7]
[424831251,1781191881000,-172.24421003,0.00027427,7]
[424831259,1781191881000,-176.73163694,0.00027427,7]
[424831250,1781191881000,-162.27996301,0.00027427,7]
[424831255,1781191881000,-159.43207,0.00027427,2]
[424831256,1781191881000,-165.74314239,0.00027427,5]
[424831252,1781191881000,-175.13786254,0.00027427,7]
[424831242,1781191881000,-11565.6,0.00027397,10]
[424831253,1781191881000,-289.13094518,0.00027427,7]
[424831311,1781191882000,-804.17102365,0.00027717,2]
[424831320,1781191882000,-2000.0,0.00027746,30]
[424831329,1781191882000,-152.0,0.00027768,5]
[424831316,1781191882000,-575.42,0.00027731,2]
[424831315,1781191882000,-644.06,0.00027731,2]
[424831314,1781191882000,-191.19507538,0.0002772,2]
[424831312,1781191882000,-200.0,0.0002772,2]
[424831318,1781191882000,-8421.78,0.00027733,120]
[424831313,1781191882000,-301.14337869,0.0002772,2]
[424831321,1781191882000,-2000.0,0.00027746,30]
[424831317,1781191882000,-644.05,0.00027731,2]
[424831319,1781191882000,-2000.0,0.00027746,30]
[424831335,1781191882000,-500.0,0.00027831,2]
[424831325,1781191882000,-2000.0,0.00027746,30]
[424831328,1781191882000,-720.1,0.00027755,7]
[424831324,1781191882000,-2000.0,0.00027746,30]
[424831326,1781191882000,-2132.0,0.00027746,30]
[424831322,1781191882000,-2000.0,0.00027746,30]
[424831323,1781191882000,-2000.0,0.00027746,30]
[424831327,1781191882000,-720.24,0.00027754,7]
[424831331,1781191882000,-720.24,0.00027796,30]
[424831334,1781191882000,-575.42,0.0002782,2]
[424831332,1781191882000,-720.1,0.00027797,30]
[424831336,1781191882000,-2000.0,0.00027831,2]
[424831309,1781191882000,-644.79446245,0.00027717,2]
[424831330,1781191882000,-616.31,0.00027789,2]
[424831310,1781191882000,-151.0,0.00027717,2]
[424831285,1781191882000,-720.1,0.00027506,7]
[424831306,1781191882000,-672.96,0.00027711,7]
[424831284,1781191882000,-720.24,0.00027504,7]
[424831283,1781191882000,-500.0,0.000275,7]
[424831281,1781191882000,-204.90039627,0.000275,2]
[424831282,1781191882000,-3068.0,0.000275,7]
[424831286,1781191882000,-720.24,0.00027546,30]
[424831337,1781191882000,-720.24,0.00027838,2]
[424831287,1781191882000,-720.1,0.00027547,30]
[424831295,1781191882000,-616.31,0.00027593,2]
[424831290,1781191882000,-1053.96,0.0002755,30]
[424831288,1781191882000,-785.35,0.0002755,30]
[424831292,1781191882000,-672.96,0.0002755,30]
[424831289,1781191882000,-673.0,0.0002755,30]
[424831308,1781191882000,-720.1,0.00027714,2]
[424831293,1781191882000,-720.24,0.00027588,2]
[424831294,1781191882000,-720.1,0.00027589,2]
[424831297,1781191882000,-720.1,0.00027631,7]
[424831307,1781191882000,-720.24,0.00027713,2]
[424831299,1781191882000,-720.24,0.00027671,30]
[424831300,1781191882000,-720.1,0.00027672,30]
[424831298,1781191882000,-202.0,0.00027649,2]
[424831296,1781191882000,-720.24,0.00027629,7]
[424831305,1781191882000,-1053.92,0.00027711,7]
[424831301,1781191882000,-1494.95,0.000277,7]
[424831303,1781191882000,-673.0,0.00027711,7]
[424831304,1781191882000,-1053.96,0.00027711,7]
[424831302,1781191882000,-785.35,0.00027711,7]
[424831291,1781191882000,-1053.92,0.0002755,30]
[424831340,1781191882000,-785.35,0.00027872,2]
[424831333,1781191882000,-644.05,0.00027819,2]
[424831341,1781191882000,-151.0,0.00027872,7]
[424831378,1781191882000,-616.31,0.0002818,2]
[424831377,1781191882000,-720.11,0.0002813,7]
[424831370,1781191882000,-672.96,0.00028033,30]
[424831374,1781191882000,-720.1,0.00028088,2]
[424831369,1781191882000,-1053.92,0.00028033,30]
[424831372,1781191882000,-720.1,0.00028046,30]
[424831371,1781191882000,-720.24,0.00028046,30]
[424831373,1781191882000,-720.24,0.00028088,2]
[424831379,1781191882000,-785.35,0.00028194,7]
[424831380,1781191882000,-673.0,0.00028194,7]
[424831382,1781191882000,-1053.92,0.00028194,7]
[424831383,1781191882000,-672.96,0.00028194,7]
[424831376,1781191882000,-720.37,0.0002813,7]
[424831384,1781191882000,-8421.78,0.00028197,120]
[424831385,1781191882000,-1130.49,0.00028242,10]
[424831388,1781191882000,-200.0,0.00028268,2]
[424831387,1781191882000,-2239.2,0.00028267,2]
[424831389,1781191882000,-785.35,0.00028355,2]
[424831391,1781191882000,-616.3,0.00028376,2]
[424831390,1781191882000,-5831.68,0.00028365,7]
[424831392,1781191882000,-1309.5,0.00028384,8]
[424831393,1781191882000,-1104.75,0.00028414,13]
[424831394,1781191882000,-168.4,0.00028493,2]
[424831396,1781191882000,-785.35,0.00028516,30]
[424831338,1781191882000,-720.1,0.00027838,2]
[424831395,1781191882000,-150.0,0.000285,30]
[424831386,1781191882000,-157.46172826,0.00028258,2]
[424831375,1781191882000,-720.59,0.0002813,7]
[424831381,1781191882000,-1053.96,0.00028194,7]
[424831367,1781191882000,-673.0,0.00028033,30]
[424831342,1781191882000,-151.0,0.00027872,7]
[424831368,1781191882000,-1053.96,0.00028033,30]
[424831344,1781191882000,-673.0,0.00027872,2]
[424831355,1781191882000,-616.31,0.00027984,2]
[424831354,1781191882000,-150.0,0.00027973,2]
[424831346,1781191882000,-1053.92,0.00027872,2]
[424831343,1781191882000,-151.0,0.00027872,7]
[424831345,1781191882000,-1053.96,0.00027872,2]
[424831349,1781191882000,-720.1,0.0002788,7]
[424831348,1781191882000,-720.24,0.00027879,7]
[424831347,1781191882000,-672.96,0.00027872,2]
[424831351,1781191882000,-720.1,0.00027922,30]
[424831352,1781191882000,-720.24,0.00027963,2]
[424831339,1781191882000,-385.27,0.0002787,2]
[424831350,1781191882000,-720.24,0.00027921,30]
[424831365,1781191882000,-671.0,0.0002802,11]
[424831353,1781191882000,-720.1,0.00027963,2]
[424831361,1781191882000,-215.95576085,0.00028,30]
[424831359,1781191882000,-325.0,0.00028,2]
[424831364,1781191882000,-720.1,0.00028005,7]
[424831362,1781191882000,-215.95576085,0.00028,10]
[424831360,1781191882000,-600.0,0.00028,2]
[424831357,1781191882000,-1898.80818981,0.00028,2]
[424831363,1781191882000,-720.24,0.00028004,7]
[424831356,1781191882000,-2123.18,0.00028,7]
[424831358,1781191882000,-160.0,0.00028,2]
[424831366,1781191882000,-785.35,0.00028033,30]
[424831431,1781191883000,-327.16755175,0.00028724,7]
[424831438,1781191883000,-342.26157336,0.00028724,7]
[424831436,1781191883000,-247.62620636,0.00028724,7]
[424831435,1781191883000,-181.17210232,0.00028724,7]
[424831432,1781191883000,-410.81546729,0.00028724,7]
[424831426,1781191883000,-435.98612158,0.00028724,7]
[424831427,1781191883000,-339.65084276,0.00028724,7]
[424831429,1781191883000,-220.46829078,0.00028724,7]
[424831428,1781191883000,-229.98384101,0.00028724,7]
[424831434,1781191883000,-305.23929953,0.00028724,7]
[424831442,1781191883000,-339.51749329,0.00028724,7]
[424831430,1781191883000,-388.5091341,0.00028724,7]
[424831437,1781191883000,-316.77248802,0.00028724,7]
[424831447,1781191883000,-616.3,0.00028767,2]
[424831444,1781191883000,-332.24192547,0.00028724,7]
[424831446,1781191883000,-170.40919311,0.00028725,7]
[424831445,1781191883000,-334.35288985,0.00028725,7]
[424831448,1781191883000,-198.04688191,0.00028767,2]
[424831441,1781191883000,-363.54501935,0.00028724,7]
[424831440,1781191883000,-304.25011715,0.00028724,7]
[424831439,1781191883000,-391.43639033,0.00028724,7]
[424831450,1781191883000,-200.0,0.000288,2]
[424831456,1781191883000,-512.0,0.000289,2]
[424831457,1781191883000,-616.3,0.00028963,2]
[424831459,1781191883000,-167.43618432,0.00028971,2]
[424831433,1781191883000,-340.19882961,0.00028724,7]
[424831443,1781191883000,-318.4433546,0.00028724,7]
[424831425,1781191883000,-320.12025498,0.00028724,7]
[424831400,1781191883000,-150.0,0.00028583,22]
[424831423,1781191883000,-353.46327388,0.00028723,7]
[424831458,1781191883000,-172.82655799,0.00028971,2]
[424831399,1781191883000,-616.3,0.00028571,2]
[424831398,1781191883000,-184.98,0.00028543,2]
[424831397,1781191883000,-573.24,0.00028539,2]
[424831401,1781191883000,-166.98,0.00028596,5]
[424831403,1781191883000,-556.61,0.00028596,30]
[424831404,1781191883000,-643.98,0.00028642,2]
[424831406,1781191883000,-1130.49,0.00028644,5]
[424831405,1781191883000,-1130.49,0.00028642,5]
[424831407,1781191883000,-671.0,0.00028646,11]
[424831411,1781191883000,-591.46059967,0.00028723,7]
[424831408,1781191883000,-785.35,0.00028677,7]
[424831424,1781191883000,-318.61451373,0.00028724,7]
[424831409,1781191883000,-497.58528502,0.00028723,7]
[424831410,1781191883000,-168.88060951,0.00028723,7]
[424831412,1781191883000,-324.55992602,0.00028723,7]
[424831414,1781191883000,-350.27572509,0.00028723,7]
[424831415,1781191883000,-578.26189036,0.00028723,7]
[424831413,1781191883000,-344.48842006,0.00028723,7]
[424831416,1781191883000,-358.88062025,0.00028723,7]
[424831417,1781191883000,-331.48628479,0.00028723,5]
[424831418,1781191883000,-318.86414,0.00028723,2]
[424831419,1781191883000,-450.89927477,0.00028723,7]
[424831420,1781191883000,-195.16261851,0.00028723,7]
[424831421,1781191883000,-214.18211509,0.00028723,7]
[424831422,1781191883000,-317.38362627,0.00028723,7]
[424831402,1781191883000,-227.7,0.00028596,7]
[424831451,1781191883000,-200.0,0.00028816,2]
[424831500,1781191883000,-500.0,0.00029,2]
[424831449,1781191883000,-8421.78,0.00028772,120]
[424831491,1781191883000,-200.0,0.00029,2]
[424831488,1781191883000,-459.89,0.00029,2]
[424831489,1781191883000,-476.56,0.00029,2]
[424831490,1781191883000,-200.0,0.00029,2]
[424831492,1781191883000,-200.0,0.00029,2]
[424831486,1781191883000,-414.87,0.00029,2]
[424831496,1781191883000,-200.0,0.00029,2]
[424831493,1781191883000,-200.0,0.00029,2]
[424831497,1781191883000,-200.0,0.00029,2]
[424831494,1781191883000,-200.0,0.00029,2]
[424831499,1781191883000,-500.0,0.00029,2]
[424831498,1781191883000,-200.86,0.00029,2]
[424831495,1781191883000,-200.0,0.00029,2]
[424831508,1781191883000,-500.0,0.00029014,7]
[424831507,1781191883000,-500.0,0.00029014,7]
[424831501,1781191883000,-500.0,0.00029,2]
[424831502,1781191883000,-527.45674201,0.00029,2]
[424831503,1781191883000,-500.0,0.00029,2]
[424831505,1781191883000,-100000.0,0.00029009,7]
[424831504,1781191883000,-785.35,0.00029,30]
[424831510,1781191883000,-500.0,0.00029014,7]
[424831512,1781191883000,-500.0,0.00029014,7]
[424831513,1781191883000,-500.0,0.00029014,7]
[424831514,1781191883000,-500.0,0.00029014,7]
[424831511,1781191883000,-500.0,0.00029014,7]
[424831452,1781191883000,-785.35,0.00028838,2]
[424831509,1781191883000,-500.0,0.00029014,7]
[424831487,1781191883000,-437.56,0.00029,2]
[424831506,1781191883000,-500.0,0.00029014,7]
[424831480,1781191883000,-151.0,0.00029,2]
[424831453,1781191883000,-261.7,0.00028855,3]
[424831485,1781191883000,-413.49,0.00029,2]
[424831454,1781191883000,-200.0,0.000289,2]
[424831455,1781191883000,-341.0,0.000289,2]
[424831460,1781191883000,-1104.75,0.00028973,9]
[424831463,1781191883000,-500.0,0.00029,2]
[424831465,1781191883000,-500.0,0.00029,2]
[424831462,1781191883000,-500.0,0.00029,2]
[424831464,1781191883000,-500.0,0.00029,2]
[424831469,1781191883000,-41000.0,0.00029,2]
[424831467,1781191883000,-745.999999,0.00029,30]
[424831466,1781191883000,-500.0,0.00029,2]
[424831468,1781191883000,-404.73,0.00029,2]
[424831472,1781191883000,-1884.75763101,0.00029,2]
[424831461,1781191883000,-500.0,0.00029,2]
[424831478,1781191883000,-10000.0,0.00029,2]
[424831479,1781191883000,-7059.6,0.00029,2]
[424831470,1781191883000,-2323.16554383,0.00029,2]
[424831481,1781191883000,-30212.0,0.00029,120]
[424831475,1781191883000,-236.81981473,0.00029,2]
[424831477,1781191883000,-308.39,0.00029,2]
[424831484,1781191883000,-438.89707,0.00029,2]
[424831476,1781191883000,-252.61193022,0.00029,2]
[424831482,1781191883000,-216.96,0.00029,2]
[424831473,1781191883000,-1802.17854158,0.00029,2]
[424831474,1781191883000,-546.1,0.00029,2]
[424831471,1781191883000,-1250.83731571,0.00029,7]
[424831483,1781191883000,-651.69974455,0.00029,2]
[424831555,1781191884000,-573.15,0.00029365,2]
[424831553,1781191884000,-573.23,0.00029365,2]
[424831549,1781191884000,-573.15,0.00029362,2]
[424831550,1781191884000,-200.0,0.00029364,2]
[424831551,1781191884000,-573.23,0.00029365,2]
[424831543,1781191884000,-1104.75,0.00029239,11]